bitfinex-derivatives/quotes_SOLF0:USTF0_20260226
["timestamp","ask_amount","ask_price","bid_price","bid_amount"]
[1772090690904,2.99143839,87.68,87.6,20.5472]
[1772090690905,12.10155737,87.72,87.661,3.65321118]
[1772090691199,2.99143839,87.7,87.661,3.65321118]
[1772090693794,2.99143839,87.72,87.662,3.65321118]
[1772090694197,2.99143839,87.71,87.662,3.65321118]
[1772090694998,2.99143839,87.71,87.664,3.65321118]
[1772090696901,2.99143839,87.71,87.666,3.62581983]
[1772090699096,2.99143839,87.71,87.665,10.2659]
[1772090699097,3.64180071,87.72,87.681,3.62581983]
[1772090699297,2.99143839,87.73,87.681,3.62581983]
[1772090699998,2.99143839,87.72,87.681,3.62581983]
[1772090700203,2.99143839,87.72,87.675,10.2648]
[1772090700204,2.99143839,87.71,87.675,10.2648]
[1772090701000,3.63412203,87.719,87.675,10.2648]
[1772090702008,2.99143839,87.74,87.681,3.62581983]
[1772090702197,3.63412203,87.739,87.681,3.62581983]
[1772090702704,3.63412203,87.739,87.694,3.62581983]
[1772090703303,2.99143839,87.75,87.696,3.62581983]
[1772090703609,3.63412203,87.749,87.696,3.62581983]
[1772090704205,3.63412203,87.749,87.697,10.2622]
[1772090705703,3.63412203,87.749,87.705,3.62581983]
[1772090706908,3.63412203,87.749,87.708,10.2609]
[1772090708908,10.2526,87.78,87.718,3.62581983]
[1772090709108,3.63412203,87.769,87.718,3.62581983]
[1772090709307,3.63412203,87.749,87.699,3.62581983]
[1772090710609,3.63412203,87.749,87.703,3.62581983]
[1772090712013,3.63412203,87.749,87.708,13.88671983]
[1772090712213,3.63412203,87.749,87.709,3.62581983]
[1772090712512,2.99143839,87.75,87.709,3.62581983]
[1772090712911,2.99143839,87.76,87.709,3.62581983]
[1772090714011,2.99143839,87.75,87.712,3.62581983]
[1772090718416,3.63412203,87.759,87.712,3.62581983]
[1772090719917,3.63412203,87.759,87.722,10.2593]
[1772090721221,2.992031,87.75,87.712,3.62581983]
[1772090723208,2.992031,87.76,87.715,3.62581983]
[1772090724020,3.63412203,87.759,87.715,3.62581983]
[1772090724920,3.63412203,87.759,87.718,10.2598]
[1772090728318,2.992031,87.76,87.722,3.68881093]
[1772090730329,3.64126827,87.759,87.721,10.2593]
[1772090735829,2.992031,87.77,87.722,3.51161567]
[1772090736231,6.58549192,87.77,87.722,3.51161567]
[1772090736431,6.58549192,87.77,87.732,3.51161567]
[1772090737332,2.992031,87.77,87.732,3.51161567]
[1772090738639,6.58549192,87.77,87.732,3.51161567]
[1772090744038,3.59346092,87.759,87.722,10.2592]
[1772090744240,3.59346092,87.739,87.689,21.16655429]
[1772090744545,2.992031,87.71,87.674,3.51161567]
[1772090746136,2.992031,87.7,87.663,10.2662]
[1772090746343,2.992031,87.7,87.663,13.77781567]
[1772090747145,2.992031,87.7,87.664,3.51161567]
[1772090748342,3.59346092,87.709,87.664,3.51161567]
[1772090754546,3.59346092,87.699,87.652,10.2674]
[1772090754747,3.59346092,87.699,87.653,3.51161567]
[1772090754947,2.992031,87.69,87.653,3.51161567]
[1772090755944,3.87878845,87.703,87.638,3.86396765]
[1772090756143,3.87878845,87.703,87.63,2.992031]
[1772090756144,3.87878845,87.699,87.641,3.86396765]
[1772090757047,3.87878845,87.699,87.649,3.86396765]
[1772090758347,3.87878845,87.699,87.616,21.16655429]
[1772090758348,3.87878845,87.699,87.653,3.86396765]
[1772090758753,3.87878845,87.679,87.631,3.86396765]
[1772090759352,3.87878845,87.679,87.634,3.86396765]
[1772090762053,3.87878845,87.669,87.619,3.86396765]
[1772090762759,3.87878845,87.659,87.613,279.48728169]
[1772090762948,2.992031,87.65,87.613,279.48728169]
[1772090763150,3.87878845,87.689,87.621,3.86396765]
[1772090763453,34.21,87.741,87.631,3.86396765]
[1772090763454,3.87878845,87.679,87.631,3.86396765]
[1772090764053,3.87878845,87.679,87.64,6.85599865]
[1772090764353,3.87878845,87.679,87.641,3.86396765]
[1772090767350,3.87878845,87.695,87.644,3.86396765]
[1772090767552,3.87878845,87.695,87.613,279.48728169]
[1772090767553,3.87878845,87.689,87.631,3.86396765]
[1772090767956,3.87878845,87.689,87.635,3.86396765]
[1772090770560,3.87878845,87.689,87.639,14.13296765]
[1772090771759,3.87878845,87.689,87.64,3.86396765]
[1772090772561,2.992031,87.68,87.64,3.86396765]
[1772090772761,3.87878845,87.689,87.64,3.86396765]
[1772090773667,3.87878845,87.689,87.642,3.86396765]
[1772090774659,2.992031,87.7,87.613,279.48728169]
[1772090774660,2.992031,87.7,87.654,3.86396765]
[1772090774964,3.87878845,87.701,87.654,3.86396765]
[1772090775665,2.992031,87.7,87.654,3.86396765]
[1772090776962,2.992031,87.7,87.657,3.86396765]
[1772090778466,6.87081945,87.7,87.657,3.86396765]
[1772090778874,3.87878845,87.7,87.657,3.86396765]
[1772090781775,6.8748417,87.7,87.657,3.86396765]
[1772090781974,3.87878845,87.699,87.657,3.86396765]
[1772090782370,3.87878845,87.699,87.659,3.86396765]
[1772090783373,3.87878845,87.699,87.663,14.13016765]
[1772090784178,3.87878845,87.699,87.663,3.86396765]
[1772090786881,8.46457518,87.744,87.617,1.98488521]
[1772090786882,3.66366279,87.728,87.671,3.81013926]
[1772090787081,3.66366279,87.728,87.681,3.81013926]
[1772090787476,3.66366279,87.728,87.68,2.99605325]
[1772090787477,3.66366279,87.728,87.684,3.81013926]
[1772090796482,3.66366279,87.728,87.672,10.2651]
[1772090796483,3.61789752,87.727,87.672,10.2651]
[1772090796688,3.61789752,87.719,87.672,13.94993708]
[1772090796888,3.61789752,87.709,87.672,3.68483708]
[1772090800692,2.99605325,87.72,87.672,3.68483708]
[1772090800895,2.99605325,87.72,87.674,3.68483708]
[1772090802598,3.61789752,87.719,87.674,3.68483708]
[1772090804901,2.99605325,87.73,87.676,3.68483708]
[1772090805398,3.61789752,87.729,87.676,3.68483708]
[1772090805996,3.61789752,87.729,87.681,3.68483708]
[1772090806397,2.99605325,87.72,87.681,3.68483708]
[1772090811805,3.61789752,87.736,87.683,3.68483708]
[1772090812009,3.61789752,87.736,87.69,2.99605325]
[1772090812307,14.1402817,87.783,87.691,3.68483708]
[1772090812308,3.61789752,87.749,87.691,3.68483708]
[1772090812901,3.61789752,87.749,87.696,3.68483708]
[1772090815408,2.99605325,87.74,87.696,3.68483708]
[1772090815907,3.61789752,87.729,87.686,3.77323222]
[1772090816308,3.61789752,87.729,87.689,3.77323222]
[1772090816808,3.58955506,87.739,87.693,3.77323222]
[1772090819006,3.58955506,87.739,87.694,3.77323222]
[1772090819206,6.58560831,87.73,87.694,3.77323222]
[1772090819407,3.58955506,87.729,87.681,3.77323222]
[1772090820404,6.58560831,87.74,87.691,3.77323222]
[1772090820609,2.99605325,87.75,87.691,3.77323222]
[1772090820811,3.58955506,87.749,87.691,3.77323222]
[1772090821010,2.99605325,87.74,87.691,3.77323222]
[1772090821912,3.58955506,87.749,87.7,3.77323222]
[1772090822415,6.58560831,87.76,87.703,3.77323222]
[1772090822611,3.58955506,87.759,87.711,3.77323222]
[1772090822815,3.58955506,87.759,87.712,3.77323222]
[1772090823410,10.63675614,87.788,87.7,10.2618]
[1772090823411,3.58955506,87.749,87.7,10.2618]
[1772090823612,3.58955506,87.719,87.668,3.77323222]
[1772090823810,2.99605325,87.71,87.668,3.77323222]
[1772090824010,3.58955506,87.719,87.671,3.77323222]
[1772090824912,3.58955506,87.719,87.66,2.99605325]
[1772090824913,3.58955506,87.719,87.674,3.77323222]
[1772090827719,3.58955506,87.719,87.677,3.77323222]
[1772090827918,3.58955506,87.752,87.681,3.77323222]
[1772090828212,3.58955506,87.739,87.691,3.77323222]
[1772090828518,2.99605325,87.73,87.691,3.77323222]
[1772090830623,2.99605325,87.73,87.693,3.77323222]
[1772090830814,3.58955506,87.739,87.693,3.77323222]
[1772090831617,2.99605325,87.73,87.693,3.77323222]
[1772090839322,2.99412957,87.73,87.693,3.77323222]
[1772090841826,9.07584966,87.736,87.695,3.77323222]
[1772090842029,3.58955506,87.739,87.695,3.77323222]
[1772090842223,3.58955506,87.737,87.695,3.77323222]
[1772090843028,3.58955506,87.737,87.7,10.2619]
[1772090843330,3.58955506,87.737,87.646,28.22207239]
[1772090843331,3.58955506,87.747,87.701,3.77323222]
[1772090843519,3.58955506,87.739,87.69,3.77323222]
[1772090843724,3.58955506,87.729,87.68,3.77323222]
[1772090844923,3.58955506,87.729,87.684,10.2637]
[1772090845124,3.58955506,87.729,87.685,3.77323222]
[1772090845924,3.58955506,87.729,87.688,10.2633]
[1772090848529,3.58955506,87.729,87.688,13.84860032]
[1772090852635,3.58955506,87.729,87.689,3.58530032]
[1772090857534,3.58955506,87.729,87.691,10.2628]
[1772090857730,3.58955506,87.729,87.691,13.89997305]
[1772090861733,3.58955506,87.729,87.692,3.63717305]
[1772090869737,3.58955506,87.729,87.696,3.63717305]
[1772090869932,2.99412957,87.74,87.696,3.63717305]
[1772090870140,17.62316269,87.739,87.696,3.63717305]
[1772090870441,3.79256217,87.737,87.696,3.63717305]
[1772090870641,9.09017235,87.736,87.696,3.63717305]
[1772090870833,3.79256217,87.734,87.696,3.63717305]
[1772090871033,9.09017235,87.733,87.696,3.63717305]
[1772090871242,9.09017235,87.732,87.696,3.63717305]
[1772090871538,9.09017235,87.731,87.696,3.63717305]
[1772090871745,9.09017235,87.73,87.696,3.63717305]
[1772090872043,3.79256217,87.734,87.696,3.63717305]
[1772090872240,12.88554586,87.733,87.696,3.63717305]
[1772090872445,12.88554586,87.732,87.696,3.63717305]
[1772090872742,9.09298369,87.731,87.696,3.63717305]
[1772090872940,9.09298369,87.73,87.696,3.63717305]
[1772090873134,9.09298369,87.729,87.696,3.63717305]
[1772090873337,9.09298369,87.728,87.696,3.63717305]
[1772090873533,3.79256217,87.732,87.696,3.63717305]
[1772090873736,9.0962724,87.731,87.696,3.63717305]
[1772090873938,9.0962724,87.73,87.696,3.63717305]
[1772090874142,9.0962724,87.729,87.696,3.63717305]
[1772090874442,9.0962724,87.728,87.696,3.63717305]
[1772090874639,3.79256217,87.732,87.696,3.63717305]
[1772090874942,9.0962621,87.731,87.696,3.63717305]
[1772090875244,9.0962621,87.73,87.696,3.63717305]
[1772090875539,9.0962621,87.729,87.696,3.63717305]
[1772090875745,9.0962621,87.728,87.696,3.63717305]
[1772090875944,3.79256217,87.732,87.696,3.63717305]
[1772090876144,3.53926341,87.73,87.696,3.63717305]
[1772090876439,9.09632853,87.729,87.696,3.63717305]
[1772090876639,9.09632853,87.728,87.696,3.63717305]
[1772090876833,3.53926341,87.73,87.696,3.63717305]
[1772090877144,9.09627957,87.729,87.696,3.63717305]
[1772090877346,9.09627957,87.728,87.696,3.63717305]
[1772090877546,3.53926341,87.73,87.696,3.63717305]
[1772090877747,9.09627432,87.729,87.696,3.63717305]
[1772090878046,9.09627432,87.728,87.696,3.63717305]
[1772090878248,3.53926341,87.73,87.696,3.63717305]
[1772090878445,9.09627706,87.729,87.696,3.63717305]
[1772090878642,9.09627706,87.728,87.696,3.63717305]
[1772090878844,3.53926341,87.73,87.696,3.63717305]
[1772090879045,3.53926341,87.728,87.696,3.63717305]
[1772090880842,9.09638422,87.727,87.696,3.63717305]
[1772090881038,3.53926341,87.726,87.696,3.63717305]
[1772090882049,3.53926341,87.726,87.67,2.99412957]
[1772090882050,3.53926341,87.735,87.699,3.55519506]
[1772090882244,3.53926341,87.733,87.699,3.55519506]
[1772090882439,9.09625997,87.732,87.699,3.55519506]
[1772090882643,9.09625997,87.731,87.699,3.55519506]
[1772090882844,3.53926341,87.729,87.688,10.2632]
[1772090883152,3.53926341,87.727,87.689,3.55519506]
[1772090883649,3.53926341,87.739,87.693,3.55519506]
[1772090883850,17.63279635,87.738,87.693,3.55519506]
[1772090884040,17.63279635,87.737,87.693,3.55519506]
[1772090884242,17.63279635,87.736,87.693,3.55519506]
[1772090884450,17.63279635,87.735,87.693,3.55519506]
[1772090884650,17.63279635,87.734,87.693,3.55519506]
[1772090884845,9.09625474,87.733,87.693,3.55519506]
[1772090885050,9.09625474,87.732,87.695,3.55519506]
[1772090885250,9.09625474,87.731,87.695,3.55519506]
[1772090885453,3.53926341,87.739,87.695,3.55519506]
[1772090885454,9.09625474,87.73,87.695,3.55519506]
[1772090885651,9.09625474,87.729,87.695,3.55519506]
[1772090885949,9.09625474,87.728,87.695,3.55519506]
[1772090886150,12.07578811,87.736,87.695,3.55519506]
[1772090886350,17.63275885,87.735,87.695,3.55519506]
[1772090886647,17.63275885,87.734,87.695,3.55519506]
[1772090886844,9.09623415,87.733,87.695,3.55519506]
[1772090887049,3.53926341,87.736,87.695,3.55519506]
[1772090887050,9.09623415,87.732,87.695,3.55519506]
[1772090887249,9.09623415,87.731,87.695,3.55519506]
[1772090887448,9.09623415,87.73,87.695,3.55519506]
[1772090887649,9.09623415,87.729,87.695,3.55519506]
[1772090887952,9.09623415,87.728,87.695,3.55519506]
[1772090888149,3.53926341,87.736,87.695,3.55519506]
[1772090888349,3.53926341,87.734,87.695,3.55519506]
[1772090888541,9.09754006,87.733,87.695,3.55519506]
[1772090888747,17.63547112,87.732,87.695,3.55519506]
[1772090888944,17.63547112,87.731,87.695,3.55519506]
[1772090889147,17.63547112,87.73,87.695,3.55519506]
[1772090889346,9.09754006,87.729,87.695,3.55519506]
[1772090889553,9.09754006,87.728,87.695,3.55519506]
[1772090889754,9.09754006,87.727,87.695,3.55519506]
[1772090889957,9.09754006,87.726,87.695,3.55519506]
[1772090890150,9.09754006,87.725,87.695,3.55519506]
[1772090890350,9.09754006,87.724,87.695,3.55519506]
[1772090890550,8.53730433,87.731,87.695,3.55519506]
[1772090890751,9.09655902,87.73,87.695,3.55519506]
[1772090891048,9.09655902,87.729,87.695,3.55519506]
[1772090891257,9.09655902,87.728,87.695,3.55519506]
[1772090891555,9.09655902,87.727,87.695,3.55519506]
[1772090891756,9.09655902,87.726,87.695,3.55519506]
[1772090891956,9.09655902,87.725,87.695,3.55519506]
[1772090892156,8.53643422,87.731,87.695,3.55519506]
[1772090892458,9.09586169,87.73,87.695,3.55519506]
[1772090892660,3.53926341,87.728,87.695,3.55519506]
[1772090892953,9.09586169,87.727,87.695,3.55519506]
[1772090893158,9.09586169,87.726,87.695,3.55519506]
[1772090893359,3.53926341,87.728,87.695,3.55519506]
[1772090895361,3.53926341,87.728,87.684,3.55519506]
[1772090895958,3.53926341,87.728,87.688,3.55519506]
[1772090897956,8.53560532,87.727,87.679,3.55519506]
[1772090898163,3.53926341,87.719,87.679,3.55519506]
[1772090898361,3.53926341,87.709,87.669,3.55519506]
[1772090902259,3.53926341,87.719,87.671,3.55519506]
[1772090903860,3.53926341,87.719,87.676,10.2647]
[1772090904066,3.53926341,87.719,87.677,3.55519506]
[1772090904762,3.53926341,87.748,87.701,3.55519506]
[1772090904968,3.53926341,87.746,87.701,3.55519506]
[1772090907068,3.53926341,87.746,87.703,3.75543781]
[1772090907971,3.53926341,87.746,87.705,3.75543781]
[1772090909375,2.99562724,87.75,87.705,3.75543781]
[1772090909376,3.88598377,87.739,87.705,3.75543781]
[1772090911374,3.88598377,87.739,87.695,10.2625]
[1772090911581,3.88598377,87.739,87.69,2.99562724]
[1772090911582,3.88598377,87.719,87.681,3.75543781]
[1772090912177,3.88598377,87.719,87.682,10.2639]
[1772090912378,3.88598377,87.719,87.682,14.01933781]
[1772090912573,3.88598377,87.719,87.683,3.75543781]
[1772090917482,2.99562724,87.71,87.666,3.70571163]
[1772090920183,2.99562724,87.71,87.668,3.70571163]
[1772090921791,6.57754585,87.71,87.668,3.70571163]
[1772090922986,6.57754585,87.71,87.67,3.70571163]
[1772090924891,3.58191861,87.709,87.67,3.70571163]
[1772090930689,2.99562724,87.71,87.673,3.70571163]
[1772090930895,8.52924661,87.744,87.622,361.74356266]
[1772090930896,3.58191861,87.733,87.691,3.70571163]
[1772090931494,3.58191861,87.743,87.691,3.70571163]
[1772090931798,3.58191861,87.743,87.701,3.70571163]
[1772090932895,3.58191861,87.743,87.706,13.96681163]
[1772090933096,3.58191861,87.743,87.707,3.70571163]
[1772090936402,3.58191861,87.743,87.69,2.99562724]
[1772090936403,3.87365152,87.739,87.698,3.7716586]
[1772090936794,3.87365152,87.739,87.7,3.7716586]
[1772090937699,10.2555,87.755,87.699,10.262]
[1772090937700,3.87365152,87.729,87.699,10.262]
[1772090940904,3.87365152,87.729,87.69,3.7716586]
[1772090944209,3.87365152,87.729,87.679,14.0359586]
[1772090944404,3.87365152,87.719,87.68,3.7716586]
[1772090950215,3.87365152,87.719,87.684,3.7716586]
[1772090952020,3.87365152,87.719,87.686,3.7716586]
[1772090956813,3.87365152,87.709,87.656,21.16655429]
[1772090957016,3.87365152,87.699,87.652,3.7716586]
[1772090957519,3.87365152,87.699,87.654,3.7716586]
[1772090958924,3.87365152,87.699,87.661,3.7716586]
[1772090963228,3.87365152,87.699,87.663,3.7716586]
[1772090963625,10.63675614,87.736,87.663,3.7716586]
[1772090963626,6.86974121,87.71,87.663,3.7716586]
[1772090963935,3.87365152,87.709,87.663,3.7716586]
[1772090965029,3.87365152,87.709,87.667,3.7716586]
[1772090966031,3.87365152,87.709,87.668,10.2656]
[1772090966233,3.87365152,87.709,87.668,13.81265877]
[1772090968532,3.61079217,87.699,87.658,10.2668]
[1772090968733,3.61079217,87.699,87.658,13.81385877]
[1772090968934,3.61079217,87.699,87.659,3.54705877]
[1772090969134,3.61079217,87.699,87.661,3.54705877]
[1772090969335,10.63675614,87.741,87.661,3.54705877]
[1772090969336,3.61079217,87.709,87.661,3.54705877]
[1772090971035,2.99608969,87.7,87.67,3.54705877]
[1772090973940,3.61079217,87.709,87.67,3.54705877]
[1772090975244,3.61079217,87.709,87.671,3.73185468]
[1772090976037,3.60183272,87.725,87.69,3.73185468]
[1772090976541,3.60183272,87.719,87.671,3.73185468]
[1772090977946,3.60183272,87.719,87.677,3.73185468]
[1772090978943,3.60183272,87.709,87.677,3.73185468]
[1772090983045,10.63675614,87.748,87.629,1.98467013]
[1772090983046,3.60183272,87.719,87.679,3.73185468]
[1772090983350,3.60183272,87.729,87.679,3.73185468]
[1772090983946,3.60183272,87.729,87.683,3.73185468]
[1772090984949,3.60183272,87.729,87.686,3.73185468]
[1772090986246,3.60183272,87.729,87.687,10.2634]
[1772090986745,3.60183272,87.729,87.687,13.99525468]
[1772090987245,3.60183272,87.729,87.688,3.73185468]
[1772090991752,3.60183272,87.738,87.692,3.73185468]
[1772090992955,3.60183272,87.738,87.695,10.2624]
[1772090994156,3.60183272,87.738,87.696,3.73185468]
[1772090995058,2.99608969,87.73,87.696,3.73185468]
[1772090998651,3.73519977,87.729,87.687,3.75107945]
[1772091000459,3.73519977,87.699,87.667,3.75107945]
[1772091000762,3.73519977,87.699,87.651,3.75107945]
[1772091001361,3.73519977,87.699,87.657,3.75107945]
[1772091002856,3.73519977,87.699,87.661,3.75107945]
[1772091005254,3.73519977,87.699,87.65,14.01877945]
[1772091005460,3.73519977,87.689,87.65,14.01877945]
[1772091005962,3.73519977,87.669,87.618,3.75107945]
[1772091006557,3.73519977,87.659,87.618,3.75107945]
[1772091006856,2.99608969,87.67,87.618,3.75107945]
[1772091007959,3.73519977,87.689,87.631,3.75107945]
[1772091008968,3.73519977,87.689,87.641,3.75107945]
[1772091009264,2.99608969,87.68,87.641,3.75107945]
[1772091010464,2.99608969,87.7,87.651,3.75107945]
[1772091010868,3.73519977,87.701,87.661,3.75107945]
[1772091011571,2.99608969,87.7,87.661,3.75107945]
[1772091011964,3.73519977,87.699,87.661,3.75107945]
[1772091013969,3.73519977,87.699,87.658,3.75107945]
[1772091016073,3.73519977,87.699,87.659,10.2667]
[1772091016472,3.73519977,87.689,87.641,3.75107945]
[1772091016679,34.22,87.747,87.56,159.884]
[1772091016680,2.99608969,87.65,87.619,3.75107945]
[1772091016879,8.969e-05,87.65,87.619,3.75107945]
[1772091017878,3.73519977,87.659,87.62,3.75107945]
[1772091021280,3.73519977,87.659,87.61,2.99608969]
[1772091021281,2.99854661,87.66,87.623,3.75107945]
[1772091021679,2.99854661,87.68,87.631,3.75107945]
[1772091022980,2.99854661,87.68,87.643,3.75107945]
[1772091023175,3.73519977,87.697,87.643,3.75107945]
[1772091023981,3.73519977,87.697,87.646,3.75107945]
[1772091024882,3.73519977,87.697,87.65,3.75107945]
[1772091025082,2.99854661,87.69,87.65,3.75107945]
[1772091025987,2.99854661,87.69,87.651,10.2676]
[1772091026285,3.73808546,87.689,87.65,3.75107945]
[1772091028081,3.73808546,87.679,87.641,10.2688]
[1772091028583,3.73808546,87.679,87.644,10.2684]
[1772091028789,3.73808546,87.679,87.645,3.81007368]
[1772091029292,6.73663207,87.69,87.645,3.81007368]
[1772091029681,3.73808546,87.689,87.645,3.81007368]
[1772091029887,3.73808546,87.689,87.651,3.81007368]
[1772091030086,3.73808546,87.699,87.651,3.81007368]
[1772091030687,3.73808546,87.699,87.652,10.2674]
[1772091031090,3.73808546,87.699,87.653,3.81007368]
[1772091031488,3.73808546,87.699,87.656,3.81007368]
[1772091032391,3.73808546,87.689,87.649,10.2678]
[1772091032989,3.73808546,87.689,87.649,14.07787368]
[1772091033190,3.73808546,87.689,87.65,3.81007368]
[1772091035996,3.73808546,87.689,87.653,3.70500356]
[1772091036189,2.99854661,87.7,87.653,3.70500356]
[1772091036695,3.80655279,87.699,87.653,3.70500356]
[1772091037198,2.99854661,87.69,87.653,3.70500356]
[1772091038194,3.80655279,87.689,87.653,3.70500356]
[1772091038393,3.80655279,87.689,87.649,10.2678]
[1772091039394,3.80655279,87.689,87.652,3.70500356]
[1772091040894,3.80655279,87.689,87.653,10.2673]
[1772091041395,3.80655279,87.689,87.653,13.97230356]
[1772091042401,3.80655279,87.689,87.654,3.70500356]
[1772091042597,3.80655279,87.689,87.656,3.70500356]
[1772091050303,3.80655279,87.689,87.659,10.2667]
[1772091051700,2.99854661,87.7,87.663,3.70500356]
[1772091051905,3.80655279,87.701,87.663,3.70500356]
[1772091052906,3.80655279,87.701,87.665,3.70500356]
[1772091053500,2.99854661,87.7,87.665,3.70500356]
[1772091054000,2.99854661,87.71,87.672,3.70500356]
[1772091054909,2.99854661,87.71,87.678,10.2645]
[1772091055612,8.47163137,87.731,87.642,21.22935009]
[1772091055613,3.80655279,87.725,87.681,3.70500356]
[1772091056912,3.80655279,87.725,87.686,10.2635]
[1772091057104,2.99854661,87.72,87.686,3.70629024]
[1772091057413,2.99854661,87.72,87.587,435.33607681]
[1772091057414,3.70131266,87.719,87.661,3.70629024]
[1772091058313,2.99854661,87.7,87.666,3.70629024]
[1772091058907,3.70131266,87.709,87.666,3.70629024]
[1772091059910,3.70131266,87.709,87.668,13.97189024]
[1772091060213,3.70131266,87.709,87.669,3.70629024]
[1772091060914,3.70131266,87.709,87.672,3.70629024]
[1772091062616,3.70131266,87.709,87.674,3.70629024]
[1772091063513,3.70131266,87.709,87.676,3.70629024]
[1772091063713,3.70131266,87.72,87.676,3.70629024]
[1772091064116,3.70131266,87.72,87.688,3.70629024]
[1772091078630,2.99854661,87.73,87.689,3.70629024]
[1772091078828,6.69985927,87.73,87.689,3.70629024]
[1772091079333,3.70131266,87.729,87.689,3.70629024]
[1772091081035,3.70131266,87.719,87.68,3.70629024]
[1772091081725,3.70131266,87.719,87.66,2.99854661]
[1772091081928,3.70131266,87.719,87.598,35.27759049]
[1772091081929,2.99854661,87.67,87.635,3.70629024]
[1772091082123,3.70131266,87.68,87.62,2.99854661]
[1772091082327,2.99854661,87.67,87.621,3.70629024]
[1772091083433,2.99819437,87.67,87.621,3.70629024]
[1772091084130,2.99819437,87.67,87.638,10.2691]
[1772091085531,6.69950703,87.68,87.639,3.70629024]
[1772091086129,2.99819437,87.67,87.639,3.70629024]
[1772091086530,2.99819437,87.67,87.627,10.2704]
[1772091086531,3.86242975,87.669,87.627,3.70321329]
[1772091087729,2.99819437,87.68,87.63,3.70321329]
[1772091087933,6.86062412,87.68,87.63,3.70321329]
[1772091088133,3.86242975,87.679,87.63,3.70321329]
[1772091089030,3.86242975,87.679,87.635,3.70321329]
[1772091090026,2.99819437,87.67,87.635,3.70321329]
[1772091093238,3.86242975,87.679,87.62,2.99819437]
[1772091093239,3.86242975,87.679,87.637,3.70321329]
[1772091094940,3.86242975,87.679,87.647,10.2681]
[1772091096040,3.86242975,87.679,87.637,3.70321329]
[1772091097444,3.6907332,87.659,87.626,10.2705]
[1772091103747,3.6907332,87.659,87.628,14.15363402]
[1772091105153,3.6907332,87.671,87.635,3.88333402]
[1772091106952,3.6907332,87.671,87.636,10.2693]
[1772091108453,3.6907332,87.671,87.637,3.88333402]
[1772091110157,8.4179727,87.722,87.641,3.88333402]
[1772091110158,3.6907332,87.683,87.641,3.88333402]
[1772091111455,2.99819437,87.68,87.643,3.88333402]
[1772091111657,3.6907332,87.683,87.643,3.88333402]
[1772091112759,2.99819437,87.69,87.649,3.88333402]
[1772091113061,34.22,87.733,87.587,275.50137681]
[1772091113062,6.68892757,87.73,87.68,2.99819437]
[1772091113357,6.68892757,87.73,87.681,3.88333402]
[1772091113753,3.6907332,87.729,87.681,3.88333402]
[1772091113955,3.6907332,87.729,87.691,10.2629]
[1772091116953,3.6907332,87.729,87.633,20.5395]
[1772091116954,3.70809593,87.719,87.672,3.80166744]
[1772091117962,3.70809593,87.719,87.679,10.2643]
[1772091118859,3.70809593,87.719,87.683,14.06556744]
[1772091120561,6.7062903,87.73,87.684,3.80166744]
[1772091120760,3.70809593,87.729,87.684,3.80166744]
[1772091121257,3.70809593,87.739,87.686,3.80166744]
[1772091121862,3.70809593,87.739,87.701,10.2617]
[1772091122563,3.70809593,87.763,87.71,2.99819437]
[1772091122761,3.70809593,87.763,87.711,3.80166744]
[1772091123568,3.70809593,87.763,87.714,3.80166744]
[1772091124666,3.70809593,87.763,87.721,3.80166744]
[1772091125867,3.70809593,87.763,87.72,2.99819437]
[1772091125868,3.70809593,87.763,87.723,3.80166744]
[1772091126165,3.70809593,87.759,87.711,3.80166744]
[1772091127072,3.70809593,87.759,87.712,3.80166744]
[1772091131380,3.70809593,87.759,87.716,3.80166744]
[1772091134375,45.63,87.813,87.702,3.80166744]
[1772091134376,3.70809593,87.749,87.702,3.80166744]
[1772091134577,3.70809593,87.709,87.662,3.80166744]
[1772091134778,3.70809593,87.699,87.65,3.80166744]
[1772091134972,2.99819437,87.68,87.65,3.80166744]
[1772091135173,2.99819437,87.67,87.637,3.80166744]
[1772091135882,3.70809593,87.679,87.637,3.80166744]
[1772091141589,3.70809593,87.708,87.641,3.80166744]
[1772091141784,3.70809593,87.708,87.651,3.80166744]
[1772091142191,2.99819437,87.7,87.651,3.80166744]
[1772091142793,5.13143702,87.741,87.604,20.5462]
[1772091142794,3.70809593,87.689,87.652,3.80166744]
[1772091143892,2.99819437,87.68,87.639,10.269]
[1772091144092,3.70809593,87.669,87.628,10.2702]
[1772091144291,3.70809593,87.669,87.629,3.80166744]
[1772091144793,3.70809593,87.669,87.578,21.22935009]
[1772091144794,2.99819437,87.68,87.632,3.80166744]
[1772091145289,2.99711621,87.69,87.632,3.80166744]
[1772091146094,2.99711621,87.68,87.632,3.80166744]
[1772091146993,2.99711621,87.68,87.642,3.71463273]
[1772091147688,3.63844374,87.709,87.642,3.71463273]
[1772091147889,10.2608,87.71,87.642,3.71463273]
[1772091147890,2.99711621,87.68,87.642,3.71463273]
[1772091151198,3.63844374,87.689,87.642,3.71463273]
[1772091151685,3.63844374,87.689,87.647,3.71463273]
[1772091154296,3.63844374,87.689,87.652,10.2675]
[1772091155699,3.63844374,87.689,87.6,278.84415238]
[1772091155700,3.59014161,87.669,87.614,3.69420201]
[1772091156999,3.59014161,87.669,87.63,10.27]